Cogmind - Beta 16 @@@ ROGUE MODE // 2025.12.03 @ 19:13:43 Player: Zonalar Result: Destroyed by P-80 Master with Gamma Rifle Performance ------------- Evolutions (7) 3500 Regions Visited (16) 3200 Robots Destroyed (95) 475 Value Destroyed (3328) 3328 Prototype IDs (54) 1080 Alien Tech Used (0) 0 Bonus (1920) 1920 TOTAL SCORE: 13503 Bonus ------- Follower Combat Kills 140 Aligned with FarCom 300 Met Warlord at Base 500 MAIN.C Attacked Warlord 500 Warlord Defense Kills 514 Friendly Fire -34 Cogmind --------- Core Integrity 0/1300 Matter 203/300 Energy 55/100 System Corruption 22% Temperature Cool (52) Movement Flying (120) Ox1 Location -3/Research Parts ------- > --- POWER (2) -------- (None) > --- PROPULSION (6) --- Xenon Bombardment Thruster > --- UTILITY (10) ----- Terrain Scan Processor Improved Target Analyzer Advanced Target Analyzer Advanced Target Analyzer Graphene Brace > --- WEAPON (3) ------- Hypervelocity Railgun > --- INVENTORY (5) ---- Micro Antimatter Reactor Micro Antimatter Reactor Peak State ------------ > --- POWER ------------ Reinforced Antimatter Reactor Micro Antimatter Reactor > --- PROPULSION ------- Compact Wheel Armored Huge Wheel Armored Huge Wheel Centrium Wheel > --- UTILITY ---------- Advanced Heat Sink Advanced Heat Sink Advanced Signal Interpreter Terrain Scan Processor Improved Target Analyzer Advanced Target Analyzer Transmission Jammer Graphene Brace Advanced Hacking Suite > --- WEAPON ----------- Advanced Remote Datajack Plasma Sword Vortex Lance > --- INVENTORY -------- Micro Antimatter Reactor Advanced Target Analyzer Gamma Rifle Mass Driver Dirty Datajack [Rating: 112] Favorites ----------- Power Light Ion Engine Engine Light Ion Engine Power Core Micro Fission Core Reactor Micro Antimatter Reactor Propulsion Aluminum Leg Treads Light Treads Leg Aluminum Leg Wheel Armored Huge Wheel Hover Unit Antigrav System Flight Unit Improved Cesium-ion Thruster Utility Medium Storage Unit Device Seismic Detector Storage Medium Storage Unit Processor Enhanced Optical Array Hackware Improved Hacking Suite Protection Hardened Light Armor Plating Weapon Medium Laser Energy Gun Medium Laser Energy Cannon HERF Cannon Ballistic Gun Enhanced Coil Gun Ballistic Cannon Enhanced Gauss Cannon Launcher Grenade Launcher Special Weapon Field Lobotomy Kit Slashing Weapon Plasma Sword Piercing Weapon Vortex Lance Special Melee Weapon Dirty Datajack Build | -11 -10 -10 -10 -9 -8 -7 -6 -6 -6 -5 -4 -4 -4 -4 -3 -3 ------- Run | Yrd Mat Min Exi Min Mat Fac Fac Was Fac Fac Fac Upp Upp War Pro Res Slots Evolved 14 | . . . . . 4 2 2 . . 2 2 . . . . 2 Power 1 | . . . . . . . . . . 1 . . . . . . Propulsion 4 | . . . . . 1 . 1 . . 1 1 . . . . . Utility 8 | . . . . . 3 1 1 . . . 1 . . . . 2 Weapon 1 | . . . . . . 1 . . . . . . . . . . Parts Attached 215 | 10 5 3 2 2 22 8 20 3 19 32 4 12 10 17 6 40 Power 24 | 1 . 1 . . 2 . 1 1 2 4 1 1 1 . 2 7 Engine 6 | 1 . 1 . . 1 . . . . 2 . . . . 1 . Core 12 | . . . . . 1 . 1 1 2 2 1 1 1 . 1 1 Reactor 6 | . . . . . . . . . . . . . . . . 6 Propulsion 57 | 4 . . . 2 8 1 5 . 3 9 1 1 4 7 1 11 Treads 4 | 2 . . . . . . 1 . . . . . . . . 1 Leg 14 | 2 . . . 2 7 . . . . 1 . . . 2 . . Wheel 5 | . . . . . . . . . . . . . . . . 5 Hover 10 | . . . . . 1 . . . 1 1 1 . . 1 1 4 Flight 24 | . . . . . . 1 4 . 2 7 . 1 4 4 . 1 Utility 85 | 2 4 . . . 7 4 8 2 11 14 . 7 3 6 1 16 Device 43 | 1 1 . . . 1 2 3 1 6 8 . 4 3 3 . 10 Storage 6 | 1 1 . . . . . . . 1 1 . 1 . . . 1 Processor 17 | . . . . . . 1 1 . 1 5 . . . 3 1 5 Hackware 10 | . . . . . 3 . 3 . 2 . . 2 . . . . Protection 9 | . 2 . . . 3 1 1 1 1 . . . . . . . Artifact . | . . . . . . . . . . . . . . . . . Weapon 49 | 3 1 2 2 . 5 3 6 . 3 5 2 3 2 4 2 6 Energy Gun 13 | 1 1 1 1 . 2 1 1 . 1 . . 1 1 . . 2 Energy Cannon 4 | . . . . . 1 . 1 . . . 1 . . 1 . . Ballistic Gun 13 | 2 . . . . . 2 3 . . 3 1 . . . 1 1 Ballistic Cannon 3 | . . . . . . . . . 1 . . 1 . . . 1 Launcher 2 | . . 1 . . . . . . . . . 1 . . . . Special Weapon 6 | . . . 1 . . . . . 1 1 . . . 1 1 1 Impact Weapon . | . . . . . . . . . . . . . . . . . Slashing Weapon 2 | . . . . . 1 . . . . 1 . . . . . . Piercing Weapon 2 | . . . . . . . . . . . . . . 2 . . Special Melee Weapon 4 | . . . . . 1 . 1 . . . . . 1 . . 1 Unidentified Prototypes 24 | . . . 2 . 1 1 2 2 2 7 2 . . 4 1 . Corrupted Parts 4 | . . . . . . 1 1 . . . . . . 2 . . System Corruption 16 | . . . . . . 1 3 . . . . . . 12 . . Parts Lost 72 | . . . . . 6 . . . . 4 . 6 4 4 9 39 Power 11 | . . . . . 1 . . . . . . 1 1 . 3 5 Propulsion 26 | . . . . . 3 . . . . 3 . 1 2 2 2 13 Utility 23 | . . . . . 1 . . . . . . 3 1 2 3 13 Weapon 12 | . . . . . 1 . . . . 1 . 1 . . 1 8 Highest Loss Streak 17 | . . . . . 4 . . . . 3 . 3 2 4 4 17 To Critical Strikes . | . . . . . . . . . . . . . . . . . Average Backups 7 | 3 8 10 8 9 9 8 8 5 5 4 4 4 4 4 4 4 Power . | . . . 1 2 1 . . . . . . . . . . . Propulsion . | 1 1 1 . . . . . 1 1 . . . . . . . Utility 4 | . 3 6 6 6 3 6 6 4 3 3 2 1 2 1 . . Weapon 1 | 1 2 3 1 . 1 1 . . . . 2 2 2 1 2 2 Tool/Special . | . . . . . . . . . . . . . . . . . Unused Backups 25 | . 4 . 2 1 8 2 3 1 1 1 . . . . . 2 Power 4 | . . . . . 2 1 1 . . . . . . . . . Propulsion 2 | . . . . 1 . . . . . . . . . . . 1 Utility 11 | . 3 . 1 . 2 . 2 1 1 1 . . . . . . Weapon 7 | . 1 . 1 . 4 1 . . . . . . . . . . Tool/Special 1 | . . . . . . . . . . . . . . . . 1 Average Slot Usage (%) 90 | . 100 100 88 85 90 99 97 100 99 97 95 94 91 87 76 69 Engine 7 | . 14 14 14 14 1 7 . . . 2 . . . 6 7 . Core 3 | . . . . . 7 . 5 6 5 6 9 8 8 2 1 2 Treads 1 | . 27 . . . . . 3 . . . . . . . . . Leg 16 | . . 28 28 28 25 22 13 . . . . . . 1 5 . Flight 8 | . . . . . . . 8 26 26 28 26 28 28 21 21 4 Device 10 | . 7 13 14 14 5 2 9 4 4 7 9 8 12 16 5 7 Storage 8 | . 14 14 14 14 9 7 4 . 1 . . 1 1 . . . Processor 5 | . . . . . . 5 6 6 12 14 15 15 13 11 10 18 Hackware 6 | . . . . . 8 15 15 26 23 17 15 13 10 10 9 3 Protection 3 | . 6 . . . 20 13 8 8 3 . . . . . . . Energy Gun 7 | . 25 22 5 14 9 5 2 6 5 . . . 3 . . . Ballistic Gun 2 | . 2 . . . . 2 13 6 4 9 7 7 3 2 1 . Special Weapon 3 | . . . 10 . . 5 . . 2 2 2 1 . . 2 1 Slashing Weapon 1 | . . . . . 1 4 . . . 2 3 3 2 3 4 2 Peak Build Rating 112 | 9 10 10 25 25 42 51 66 72 73 99 107 110 101 99 100 112 Average Rating 45 | 7 8 8 17 24 34 44 55 67 69 86 99 102 91 87 85 90 On Entrance 52 | . 9 10 8 25 24 33 41 66 71 67 94 107 93 79 90 83 Avg Prop Armor Cover (%) 9 | . . . . . . . 6 . 2 . 6 4 . 9 8 12 Naked Turns . | . . . . . . . . . . . . . . . . . Heaviest Build 54 | 14 24 25 22 22 36 42 43 24 27 43 36 54 36 31 23 48 Greatest Support 88 | 40 40 20 20 20 40 39 39 24 24 35 33 40 37 31 27 88 Greatest Overweight (x) 11 | . 1 1 1 1 1 1 11 . 1 8 2 1 1 1 . 3 Average Overweight (x) . | . . . . 1 . . . . . . . . . . . . Largest Inventory Capacity 10 | 8 10 10 10 10 10 10 10 5 10 5 5 5 5 5 5 5 Average Capacity 8 | 7 9 10 10 10 10 10 8 5 6 5 5 5 5 5 5 5 Most Carried 10 | 6 10 10 10 10 10 10 10 5 7 5 5 5 5 5 5 5 Average Carried 7 | 3 8 9 9 9 9 9 8 5 5 4 4 4 4 4 4 4 Final Capacity 10 | 8 10 10 10 10 10 10 5 5 5 5 5 5 5 5 5 5 Final Carried 10 | 5 10 10 9 10 10 10 5 5 5 5 5 5 5 4 5 2 Class Distribution -------------------- 49% | Mutant 15% | Hacker-Sprinter 11% | Scavenger-Mutant 11% | Hacker-Mutant 5% | Hacker-Scout Dominant Class ---------------- Mutant | -10/Materials Mutant | -10/Mines Mutant | -10/Exiles Mutant | -9/Mines Scavenger-Mutant | -8/Materials Hacker-Mutant | -7/Factory Hacker-Tank | -6/Factory Hacker-Tank | -6/Waste Hacker-Sprinter | -6/Factory Hacker-Sprinter | -5/Factory Hacker-Ninja | -4/Factory Hacker-Sprinter | -4/Upper Caves Derelict-Sprinter | -4/Upper Caves Hacker-Sprinter | -4/Warlord Hacker-Mutant | -3/Proximity Caves Scavenger-Mutant | -3/Research Resources | -11 -10 -10 -10 -9 -8 -7 -6 -6 -6 -5 -4 -4 -4 -4 -3 -3 ----------- Run | Yrd Mat Min Exi Min Mat Fac Fac Was Fac Fac Fac Upp Upp War Pro Res Matter Collected 4865 | 362 101 209 340 30 442 148 279 . 275 726 300 533 25 564 122 409 Remotely . | . . . . . . . . . . . . . . . . . Salvage Created 5016 | 172 258 81 . 139 1100 74 63 . 275 530 381 325 132 291 222 973 Parts 229 | 9 13 14 . 9 45 6 4 . 7 22 6 3 18 16 5 52 Haulers Intercepted 2 | . . . . . 1 . . . . 1 . . . . . . Recyclers Shooed 7 | . 2 . . . . . . . 2 3 . . . . . . Parts Field Recycled 22 | . . . . . . . . . . 17 . 5 . . . . Retrieved Matter 480 | . . . . . . . . . . 478 . 2 . . . . Parts Self-Destructed 17 | . . . . . . . . . . . . 2 10 . 5 . Prevented 1 | . . . . . . . . . . . . . 1 . . . Parts Restored . | . . . . . . . . . . . . . . . . . Kills | -11 -10 -10 -10 -9 -8 -7 -6 -6 -6 -5 -4 -4 -4 -4 -3 -3 ------- Run | Yrd Mat Min Exi Min Mat Fac Fac Was Fac Fac Fac Upp Upp War Pro Res Combat Hostiles Destroyed 59 | . 5 3 . 4 17 1 1 . 1 2 . 2 6 4 1 12 Melee 19 | . . . . . 4 . . . . 1 . 1 2 . . 11 Guns 35 | . 4 2 . 4 13 1 1 . 1 1 . . 3 4 . 1 AOE 3 | . . 1 . . . . . . . . . 1 1 . . . Classes Destroyed 17 | 2 3 1 . 1 4 . . . 1 2 . . 1 1 . 1 Worker 6 | . . 2 . . . . . . . 2 . . . . . 2 Builder 3 | . . . . . . . . . . 1 . . . . . 2 Tunneler 7 | 4 1 2 . . . . . . . . . . . . . . Hauler 2 | . . . . . 1 . . . . 1 . . . . . . Recycler 11 | 1 1 . . . 2 . . . 2 2 2 . . . . 1 Operator 1 | . . . . . 1 . . . . . . . . . . . Watcher 7 | . 1 . . . 2 . . . . . 3 . . . . 1 Swarmer 15 | . 3 3 . . 3 . . . . . . . 5 . . 1 Grunt 19 | . 2 . . 3 9 . . . . . . . . 2 . 3 Brawler 1 | . . . . . . . . . . . . . . . . 1 Protector 1 | . . . . . . . . . . . . . . 1 . . Sentry 9 | . . . . . 3 1 1 . . 1 . . . . . 3 Specialist 2 | . . . . . 2 . . . . . . . . . . . Hunter 3 | . . . . . . . . . . 1 . 2 . . . . Programmer 7 | . . . . . . . . . 1 . . . . 1 1 4 Decomposer 1 | . . . . . . . . . . . . 1 . . . . Master Thief 1 | . . . . . . . . . . . . . 1 . . . Assembled 1 | . . . . 1 . . . . . . . . . . . . Best Kill Streak 8 | 2 2 3 . 3 4 1 1 . 2 2 3 1 5 3 1 8 Combat Bots Only 6 | . 2 3 . 3 4 1 1 . 1 1 . 1 5 3 1 6 Max Kills in Single Turn 2 | 1 2 2 . 1 1 1 1 . 1 2 1 1 1 1 1 1 Gunslinging . | . . . . . . . . . . . . . . . . . Exploded 1 | . . 1 . . . . . . . . . 1 1 . . . Melee 1 | . . . . . 1 . . . . 1 . 1 1 . . 1 Uniques/NPCs Destroyed . | . . . . . . . . . . . . . . . . . Combat | -11 -10 -10 -10 -9 -8 -7 -6 -6 -6 -5 -4 -4 -4 -4 -3 -3 -------- Run | Yrd Mat Min Exi Min Mat Fac Fac Was Fac Fac Fac Upp Upp War Pro Res Hostile Shots Fired 692 | . 35 5 . . 105 35 31 . 37 50 . 48 36 17 36 257 Missed 258 | . 11 4 . . 32 12 19 . 22 12 . 19 14 10 18 85 Hits 434 | . 24 1 . . 73 23 12 . 15 38 . 29 22 7 18 172 Melee 7 | . . . . . 1 . . . . . . . 5 . 1 . Projectile 427 | . 24 1 . . 72 23 12 . 15 38 . 29 17 7 17 172 AOE 2 | . . . . . . . . . . . . . . 1 . 1 Critical Strikes 24 | . . . . . 4 . . . . 2 . 1 1 1 2 13 Actively Blocked 12 | . . . . . . . . . . 1 . . . . . 11 Part Disruptions 1 | . . . . . . . . . . 1 . . . . . . Damage Taken 9783 | . 199 85 . . 1107 355 79 . 156 955 . 681 340 524 851 4451 Core 2294 | . 41 23 . . 139 69 5 . 35 171 . 119 59 173 142 1318 Absorbed by Shields . | . . . . . . . . . . . . . . . . . Redirected to Shielding 64 | . . . . . 40 . . . . 24 . . . . . . Ignored by Resistances 17 | . . . . . . . . . . . . . 17 . . . Regen/Repaired (Parts) 229 | . . . . . . . . . 29 . 124 . . 76 . . Core Remaining (%) 81 | 100 . . . 74 74 90 . . 95 82 . . . . 57 . Volleys Fired 271 | 16 23 17 1 . 28 7 3 3 14 52 15 31 11 27 1 22 Largest 3 | 2 2 2 2 . 2 3 3 2 2 2 2 3 1 1 1 2 Hottest 121 | 70 100 100 100 . 121 112 86 103 103 60 65 117 70 35 . 87 Shots Fired 477 | 32 46 24 2 12 107 16 9 6 17 78 27 38 11 27 1 24 Gun 391 | 32 46 11 2 12 104 14 9 6 16 63 24 7 9 27 . 9 Cannon 24 | . . . . . . . . . 1 4 . 13 . . . 6 Launcher 22 | . . 13 . . . . . . . . . 7 2 . . . Special 40 | . . . . . 3 2 . . . 11 3 11 . . 1 9 Kinetic 202 | 28 . . . . . 8 9 3 3 67 24 20 2 27 . 11 Thermal 202 | 4 46 11 2 12 104 6 . 3 14 . . . . . . . Explosive 22 | . . 13 . . . . . . . . . 7 2 . . . Electromagnetic 11 | . . . . . . . . . . . . . 7 . . 4 Robot Hit Streak 15 | 10 7 5 . 2 9 6 9 4 10 13 2 6 5 6 1 15 Robot Miss Streak 8 | 1 8 1 . 3 4 3 1 7 3 5 6 4 2 4 . 2 Penetration Max 2 | . . . . . . . . . . 1 . . . 2 . . Secondary Targets 1 | . . . . . 1 . . . . . . . . . . . Max Gunslinging Chain 1 | . . . . . 1 . . . . . . . . . . . Autonomous 75 | . . . . 12 63 . . . . . . . . . . . Shots Hit Robots 383 | 23 20 6 . 6 93 13 8 5 15 50 17 22 10 14 10 71 Core Hits 182 | 7 12 7 . 5 30 3 6 1 19 15 10 9 14 11 3 30 Critical Kills 10 | . . . . . . 1 . . 1 3 . . . 4 . 1 Critical Parts Destroyed 9 | . . . . . . . . . . 4 . . . 4 . 1 Critical Strikes 38 | . 2 . . . 4 2 . . 1 7 1 . . 8 . 13 Burn 6 | . 2 . . . 3 1 . . . . . . . . . . Destroy 19 | . . . . . . 1 . . 1 7 . . . 8 . 2 Corrupt 1 | . . . . . . . . . . . . . . . . 1 Sever 6 | . . . . . 1 . . . . . 1 . . . . 4 Sunder 6 | . . . . . . . . . . . . . . . . 6 Melee Attacks 191 | . . . . . 29 . . 1 1 5 16 10 5 7 24 93 Impact . | . . . . . . . . . . . . . . . . . Slashing 121 | . . . . . 22 . . . . 5 16 10 4 7 18 39 Piercing 13 | . . . . . . . . . . . . . 1 . 5 7 Entropic 48 | . . . . . . . . . . . . . . . 1 47 Sneak Attacks 20 | . . . . . 9 . . . 1 . 2 . . . 1 7 Combat Hostiles 2 | . . . . . . . . . 1 . . . . . . 1 Follow-up Attacks 9 | . . . . . . . . . . . . . . . . 9 Damage Inflicted 11734 | 255 259 169 . 162 2287 190 154 123 320 1512 831 1162 348 220 386 3356 Guns 4970 | 255 259 77 . 162 1669 190 154 123 320 1276 140 40 45 220 . 40 Cannons 318 | . . . . . . . . . . 116 . 26 . . . 176 Explosions 955 | . . 92 . . . . . . . . 161 486 216 . . . Melee 5439 | . . . . . 598 . . . . 120 530 578 87 . 386 3140 Ramming 52 | . . . . . 20 . . . . . . 32 . . . . Kinetic 2577 | 206 . . . . . 115 154 63 27 1392 140 66 . 220 . 194 Thermal 2644 | 49 259 77 . 162 1669 75 . 60 293 . . . . . . . Explosive 794 | . . 92 . . . . . . . . . 486 216 . . . Electromagnetic 228 | . . . . . . . . . . . 161 . 45 . . 22 Impact . | . . . . . . . . . . . . . . . . . Slashing 3432 | . . . . . 598 . . . . 120 530 578 84 . 374 1148 Piercing 31 | . . . . . . . . . . . . . 3 . 12 16 Entropic 1976 | . . . . . . . . . . . . . . . . 1976 Highest Corruption 33 | . . . . . 4 1 5 13 13 3 . 2 2 19 33 22 Average Corruption 6 | . . . . . 4 1 3 11 11 2 . 2 2 7 19 7 Corruption Purged 5 | . . . . . . . . . 5 . . . . . . . Corruption Blocked . | . . . . . . . . . . . . . . . . . Effects 120 | . . . . . 26 . 2 4 25 10 . 7 5 1 15 25 Message Errors 35 | . . . . . 12 . . 2 9 2 . 3 . . 1 6 Matter Fused 24 | . . . . . 6 . . . 2 3 . 4 2 1 2 4 Heat Flow Errors 16 | . . . . . 4 . 1 1 3 3 . . . . 1 3 Energy Discharges 13 | . . . . . . . 1 . 4 1 . . . . 6 1 Parts Rejected 4 | . . . . . . . . 1 . . . . 1 . . 2 Data Loss (minor) 14 | . . . . . 3 . . . 5 1 . . 1 . 1 3 Data Loss (major) 5 | . . . . . . . . . 1 . . . . . 1 3 Misfires 1 | . . . . . . . . . 1 . . . . . . . Alerts 3 | . . . . . 1 . . . . . . . 1 . . 1 Misdirections 4 | . . . . . . . . . . . . . . . 3 1 Weapon Failures 1 | . . . . . . . . . . . . . . . . 1 Overload Shots . | . . . . . . . . . . . . . . . . . Overflow Damage 924 | . . . . . 103 . . . . 62 147 100 22 . 155 335 Projectiles 11 | . . . . . . . . . . . . 11 . . . . Explosions 93 | . . . . . . . . . . 62 9 . 22 . . . Melee 820 | . . . . . 103 . . . . . 138 89 . . 155 335 Knockbacks 2 | . . . . . . . . . . . . . . . . 2 Impact . | . . . . . . . . . . . . . . . . . Kinetic 2 | . . . . . . . . . . . . . . . . 2 Secondary . | . . . . . . . . . . . . . . . . . Self-Inflicted Damage 476 | . . 80 . . . . . . . 167 . 157 72 . . . Shots 10 | . . 4 . . . . . . . 3 . 2 1 . . . Rammed 2 | . . . . . . . . . . . . 2 . . . . Targets Rammed 5 | . . . . . 3 . . . . . . 2 . . . . Kicked 3 | . . . . . 3 . . . . . . . . . . . Crushed . | . . . . . . . . . . . . . . . . . Highest Temperature 548 | 40 324 99 39 . 548 63 88 212 260 249 69 319 342 8 249 188 Average Temperature 91 | 20 109 36 20 . 148 23 28 86 82 74 16 105 107 5 91 97 Received Heat Transfer 1228 | . 24 . . . 594 96 18 . 12 63 . . 36 12 55 318 Effects 7 | . 3 . . . 2 . . . . . . 1 1 . . . Shutdowns 3 | . 1 . . . 1 . . . . . . . 1 . . . Energy Bleed 1 | . . . . . . . . . . . . 1 . . . . Interference 2 | . 2 . . . . . . . . . . . . . . . Matter Decay 1 | . . . . . 1 . . . . . . . . . . . Siege Activations . | . . . . . . . . . . . . . . . . . Martial Activations . | . . . . . . . . . . . . . . . . . Shielding Activations . | . . . . . . . . . . . . . . . . . Robots Disrupted . | . . . . . . . . . . . . . . . . . Combat Hostiles . | . . . . . . . . . . . . . . . . . Robots Corrupted . | . . . . . . . . . . . . . . . . . Combat Hostiles . | . . . . . . . . . . . . . . . . . Parts Fried . | . . . . . . . . . . . . . . . . . Impact Corruptions 1 | . . . . . . . . . . . . 1 . . . . Robots Melted 1 | . 1 . . . . . . . . . . . . . . . Combat Hostiles 1 | . 1 . . . . . . . . . . . . . . . Parts Melted 8 | 1 3 1 . . 3 . . . . . . . . . . . Heat Transferred 4878 | 148 925 222 . 222 2812 259 . 50 240 . . . . . . . Parts Sabotaged . | . . . . . . . . . . . . . . . . . Parts Stolen 4 | . . . . . . . . . . . . . 4 . . . Parts Stripped . | . . . . . . . . . . . . . . . . . Power Chain Reactions . | . . . . . . . . . . . . . . . . . Alert | -11 -10 -10 -10 -9 -8 -7 -6 -6 -6 -5 -4 -4 -4 -4 -3 -3 ------- Run | Yrd Mat Min Exi Min Mat Fac Fac Was Fac Fac Fac Upp Upp War Pro Res Maximum Alert Level . | . . . . . . . . . . . . . . . . . Low Security (%) 100 | 100 100 100 . 100 100 100 100 100 100 100 100 . . . . 100 Level 1 . | . . . . . . . . . . . . . . . . . Level 2 . | . . . . . . . . . . . . . . . . . Level 3 . | . . . . . . . . . . . . . . . . . Level 4 . | . . . . . . . . . . . . . . . . . Level 5 . | . . . . . . . . . . . . . . . . . High Security . | . . . . . . . . . . . . . . . . . Max Security . | . . . . . . . . . . . . . . . . . Peak Influence 199 | 5 75 92 . 63 199 64 45 3 30 139 199 . . . . 180 Initial 64 | . . 12 . . 12 64 9 3 . 7 60 . . . . 9 Average 28 | 1 21 16 . 6 63 15 5 . 5 12 143 . . . . 32 Influence Increases 2917 | 25 158 164 . 74 637 81 85 . 112 370 225 60 185 80 145 516 Destroy 0b10 Robot/C 1200 | . 100 60 . 60 400 40 20 . 20 40 . 40 100 60 20 240 Destroy 0b10 Robot/NC 220 | 25 15 20 . . 35 5 . . 10 30 25 10 . 5 5 35 Destroy Leader 262 | . 22 10 . 10 78 22 10 . 10 22 6 10 10 . . 52 Allied During Kill 12 | . . . . . 5 4 . . . . . . . . . 3 Successful Hack 183 | . 6 . . . 13 10 10 . 27 25 82 . . . . 10 Disable Machine 195 | . . 15 . . 15 . . . 15 60 90 . . . . . Destroy Structure 305 | . . 59 . 4 16 . . . . 178 22 . . . . 26 Partial Spotted 30 | . . . . . . . . . 30 . . . . . . . Lose Combat Pursuer 510 | . 15 . . . 75 . 45 . . 15 . . 75 15 120 150 Influence Decreases 2883 | 25 126 196 . 41 528 202 95 11 96 263 203 205 160 90 145 497 Entered New Map 312 | . . 20 . . 21 78 12 8 . 9 63 55 . 25 15 6 Time Decay 1960 | 25 126 176 . 41 387 104 73 3 96 214 140 130 120 26 110 189 Lost Part 471 | . . . . . 60 . . . . 40 . 20 40 39 20 252 Lost Ally 130 | . . . . . 60 20 10 . . . . . . . . 40 Purge Threat 10 | . . . . . . . . . . . . . . . . 10 Squads Dispatched 27 | . 1 . . . 5 4 2 . 4 4 2 . . . 1 4 Investigation 5 | . . . . . 1 1 2 . 1 . . . . . . . Extermination 8 | . . . . . . 1 . . 2 2 1 . . . . 2 Reinforcement 12 | . 1 . . . 4 1 . . 1 2 1 . . . . 2 Assault 1 | . . . . . . . . . . . . . . . 1 . Garrison 1 | . . . . . . 1 . . . . . . . . . . Intercept . | . . . . . . . . . . . . . . . . . Searches Triggered . | . . . . . . . . . . . . . . . . . Construction Impeded 2 | . . . . . 1 1 . . . . . . . . . . Haulers Reinforced 1 | . . . . . . . . . . 1 . . . . . . Active Scanning Responses . | . . . . . . . . . . . . . . . . . Cargo Convoy Interrupts . | . . . . . . . . . . . . . . . . . Stealth | -11 -10 -10 -10 -9 -8 -7 -6 -6 -6 -5 -4 -4 -4 -4 -3 -3 --------- Run | Yrd Mat Min Exi Min Mat Fac Fac Was Fac Fac Fac Upp Upp War Pro Res Distress Signals 3 | . . . . . 3 . . . . . . . . . . . Communications Jammed 16 | . . . . . . . . . . . . . . 10 . 6 Distress Signals 16 | . . . . . . . . . . . . . . 10 . 6 Times Spotted 203 | . 11 3 . 4 34 9 4 6 9 11 5 5 17 28 16 41 Peak Tracking Total 11 | . 3 3 . 2 7 4 3 6 4 4 2 3 6 11 7 10 Tactical Retreats 26 | . 1 . . . 4 . 1 . 2 3 . . 3 1 5 6 ECM-based Alert Blocks 14 | . . . . . . . . . 2 8 . . . . 4 . Traps | -11 -10 -10 -10 -9 -8 -7 -6 -6 -6 -5 -4 -4 -4 -4 -3 -3 ------- Run | Yrd Mat Min Exi Min Mat Fac Fac Was Fac Fac Fac Upp Upp War Pro Res Traps Triggered 6 | . . . . . 1 1 1 . 2 1 . . . . . . Indirectly . | . . . . . . . . . . . . . . . . . Trap Hack Attempts 16 | . . . . . . . 16 . . . . . . . . . Triggered 1 | . . . . . . . 1 . . . . . . . . . Disarmed . | . . . . . . . . . . . . . . . . . Reprogrammed 2 | . . . . . . . 2 . . . . . . . . . Reused . | . . . . . . . . . . . . . . . . . Traps Extracted . | . . . . . . . . . . . . . . . . . Installed . | . . . . . . . . . . . . . . . . . Triggered . | . . . . . . . . . . . . . . . . . Machines | -11 -10 -10 -10 -9 -8 -7 -6 -6 -6 -5 -4 -4 -4 -4 -3 -3 ---------- Run | Yrd Mat Min Exi Min Mat Fac Fac Was Fac Fac Fac Upp Upp War Pro Res Machines Disabled 14 | . . 1 . . 1 . . . 1 4 6 . . . 1 . Max in Single Turn 4 | . . 1 . . 1 . . . 1 3 4 . . . 1 . Garrison Access 2 | . . . . . . . . . 1 1 . . . . . . Machines Repaired . | . . . . . . . . . . . . . . . . . Machines Dismantled . | . . . . . . . . . . . . . . . . . Machines Sabotaged . | . . . . . . . . . . . . . . . . . Overloaded Fab Kills . | . . . . . . . . . . . . . . . . . Hacking | -11 -10 -10 -10 -9 -8 -7 -6 -6 -6 -5 -4 -4 -4 -4 -3 -3 --------- Run | Yrd Mat Min Exi Min Mat Fac Fac Was Fac Fac Fac Upp Upp War Pro Res Machines Accessed 60 | . 3 1 5 . 6 2 5 . 7 8 4 1 1 14 . 3 Terminals 22 | . 3 1 . . 4 . 2 . 3 4 2 1 . . . 2 Fabricators 4 | . . . . . . . 1 . 2 1 . . . . . . Repair Stations 6 | . . . . . 1 1 . . 1 1 1 . . . . 1 Recycling Units 2 | . . . . . 1 . . . . . 1 . . . . . Scanalyzers 1 | . . . . . . . 1 . . . . . . . . . Garrison Access 5 | . . . . . . 1 1 . 1 2 . . . . . . Total Hacks 189 | . 8 2 50 . 19 4 14 . 18 23 15 1 1 25 . 9 Successful 126 | . 2 . 50 . 7 1 3 . 13 10 8 1 1 25 . 5 Failed 63 | . 6 2 . . 12 3 11 . 5 13 7 . . . . 4 Catastrophic 9 | . 3 1 . . . 1 2 . 1 1 . . . . . . Database Lockouts . | . . . . . . . . . . . . . . . . . Manual 50 | . 6 2 7 . 11 . 4 . 2 6 2 3 . 2 1 4 Terminals 69 | . 8 2 . . 13 . 4 . 13 13 8 1 . . . 7 Fabricators 5 | . . . . . . . 2 . 2 1 . . . . . . Repair Stations 18 | . . . . . 3 2 . . 2 4 5 . . . . 2 Recycling Units 5 | . . . . . 3 . . . . . 2 . . . . . Scanalyzers 5 | . . . . . . . 5 . . . . . . . . . Garrison Access 11 | . . . . . . 2 3 . 1 5 . . . . . . Terminal Hacks 97 | . . . 50 . 2 . . . 7 5 3 1 1 25 . 3 Record 81 | . . . 49 . . . . . 6 1 . 1 . 24 . . Prototype ID Bank 3 | . . . . . . . . . . . 2 . . . . 1 Open Door 2 | . . . . . . . . . . . . . 1 1 . . Open DSF 1 | . . . . . . . . . . 1 . . . . . . Alert Level 2 | . . . . . 1 . . . . 1 . . . . . . Unreport Threat 1 | . . . . . . . . . . . . . . . . 1 Locate Traps 4 | . . . . . 1 . . . 1 1 1 . . . . . Dispatch Records 1 | . . . . . . . . . . . . . . . . 1 Recall Investigation 1 | . . . . . . . . . . 1 . . . . . . Proto ID Catalog 1 | . . . 1 . . . . . . . . . . . . . Fabricator Hacks 3 | . . . . . . . 1 . 2 . . . . . . . Network Status 1 | . . . . . . . . . 1 . . . . . . . Build 2 | . . . . . . . 1 . 1 . . . . . . . Repair Station Hacks 6 | . . . . . 1 1 . . 2 . 2 . . . . . Scan Component 3 | . . . . . . 1 . . 1 . 1 . . . . . Repair 2 | . . . . . . . . . 1 . 1 . . . . . Refit 1 | . . . . . 1 . . . . . . . . . . . Recycling Unit Hacks 3 | . . . . . 2 . . . . . 1 . . . . . Report Inventory 1 | . . . . . 1 . . . . . . . . . . . Retrieve Components 2 | . . . . . 1 . . . . . 1 . . . . . Scanalyzer 2 | . . . . . . . 2 . . . . . . . . . Insert Component 1 | . . . . . . . 1 . . . . . . . . . Analyze 1 | . . . . . . . 1 . . . . . . . . . Garrison Access Hacks 2 | . . . . . . . . . 1 1 . . . . . . Seal Access 2 | . . . . . . . . . 1 1 . . . . . . Unauthorized Hacks 12 | . 2 . . . 2 . . . 1 3 2 . . . . 2 Terminals 12 | . 2 . . . 2 . . . 1 3 2 . . . . 2 Botnet 9 | . . . . . 2 . . . 1 2 2 . . . . 2 Operators 2 | . 1 . . . . . . . . 1 . . . . . . Skim 1 | . 1 . . . . . . . . . . . . . . . Fabricators . | . . . . . . . . . . . . . . . . . Repair Stations . | . . . . . . . . . . . . . . . . . Recycling Units . | . . . . . . . . . . . . . . . . . Scanalyzers . | . . . . . . . . . . . . . . . . . Garrison Access . | . . . . . . . . . . . . . . . . . Data Cores Recovered 1 | . . . . . 1 . . . . . . . . . . . Used . | . . . . . . . . . . . . . . . . . Hacking Detections 34 | . 3 1 . . 6 2 5 . 4 7 3 1 . . . 2 Full Trace Events 3 | . . . . . . 1 2 . . . . . . . . . Feedback Events 2 | . . . . . . . 2 . . . . . . . . . Corruption 2 | . . . . . . . 2 . . . . . . . . . Feedback Blocked . | . . . . . . . . . . . . . . . . . Robot Schematics Acquired . | . . . . . . . . . . . . . . . . . Robots Built 4 | . . . . . . . 2 . 2 . . . . . . . Authchips . | . . . . . . . . . . . . . . . . . Time 192 | . . . . . . . 40 . 152 . . . . . . . Total Robot Build Rating 12 | . . . . . . . 2 . 10 . . . . . . . Part Schematics Acquired . | . . . . . . . . . . . . . . . . . Parts Built . | . . . . . . . . . . . . . . . . . Authchips . | . . . . . . . . . . . . . . . . . Time . | . . . . . . . . . . . . . . . . . Total Part Build Rating . | . . . . . . . . . . . . . . . . . Part Studies Acquired . | . . . . . . . . . . . . . . . . . Parts Repaired 2 | . . . . . . . . . 1 . 1 . . . . . Time 53 | . . . . . . . . . 25 . 28 . . . . . Parts Recycled . | . . . . . . . . . . . . . . . . . Recycled Matter . | . . . . . . . . . . . . . . . . . Retrieved Matter . | . . . . . . . . . . . . . . . . . Retrieved Components 2 | . . . . . 2 . . . . . . . . . . . Parts Scanalyzed 1 | . . . . . . . 1 . . . . . . . . . Part Schematics Acquired . | . . . . . . . . . . . . . . . . . Parts Damaged . | . . . . . . . . . . . . . . . . . Bothacking | -11 -10 -10 -10 -9 -8 -7 -6 -6 -6 -5 -4 -4 -4 -4 -3 -3 ------------ Run | Yrd Mat Min Exi Min Mat Fac Fac Was Fac Fac Fac Upp Upp War Pro Res Used RIF Installer . | . . . . . . . . . . . . . . . . . Robots Hacked 19 | . . . . . 3 . . 1 . 5 1 5 . . . 4 Non-combat 14 | . . . . . 3 . . . . 4 1 4 . . . 2 Combat 5 | . . . . . . . . 1 . 1 . 1 . . . 2 Robot Hacks Applied 25 | . . . . . 6 . . 1 . 8 1 5 . . . 4 parse_system 14 | . . . . . 2 . . 1 . 3 1 5 . . . 2 no_distress 7 | . . . . . 2 . . . . 3 . . . . . 2 find_chute 1 | . . . . . . . . . . 1 . . . . . . find_recycling 1 | . . . . . . . . . . 1 . . . . . . find_station 1 | . . . . . 1 . . . . . . . . . . . check_alert 1 | . . . . . 1 . . . . . . . . . . . Relay Couplers Released . | . . . . . . . . . . . . . . . . . Fabnet Peak Effective % . | . . . . . . . . . . . . . . . . . Robots Rewired . | . . . . . . . . . . . . . . . . . Allies Hacked . | . . . . . . . . . . . . . . . . . Hacks Repelled 1 | . . . . . . 1 . . . . . . . . . . Allies | -11 -10 -10 -10 -9 -8 -7 -6 -6 -6 -5 -4 -4 -4 -4 -3 -3 -------- Run | Yrd Mat Min Exi Min Mat Fac Fac Was Fac Fac Fac Upp Upp War Pro Res Total Allies 12 | . . . . . 3 2 2 . 2 . . . . . . 3 Largest Group 2 | . . . . . 2 1 2 . 2 . . . . . . 1 Highest-Rated Group 113 | . . . . . 34 37 20 . 40 . . . . . . 113 Highest-Rated Ally 113 | . . . . . 18 37 10 . 20 . . . . . . 113 Total Orders 15 | . . . . . 1 . 1 . 1 1 2 6 2 1 . . ROAM 4 | . . . . . . . 1 . . . 1 2 . . . . FOLLOW 3 | . . . . . . . . . . . . 3 . . . . GUARD 1 | . . . . . 1 . . . . . . . . . . . COLLECT 1 | . . . . . . . . . 1 . . . . . . . EXPLORE 1 | . . . . . . . . . . 1 . . . . . . RETURN 5 | . . . . . . . . . . . 1 1 2 1 . . Ally Attacks 45 | . . . . . 29 8 . . . . . . . . . 8 Total Damage 1055 | . . . . . 637 236 . . . . . . . . . 182 Kills 7 | . . . . . 4 2 . . . . . . . . . 1 Allies Corrupted 1 | . . . . . . 1 . . . . . . . . . . Allies Melted . | . . . . . . . . . . . . . . . . . Field Lobotomies 5 | . . . . . 3 2 . . . . . . . . . . Intel | -11 -10 -10 -10 -9 -8 -7 -6 -6 -6 -5 -4 -4 -4 -4 -3 -3 ------- Run | Yrd Mat Min Exi Min Mat Fac Fac Was Fac Fac Fac Upp Upp War Pro Res Active Infowar (turns) 12268 | 151 321 860 3938 892 808 309 465 66 673 859 293 670 253 857 313 540 Optics 4106 | . . . . . . . . . 623 859 293 670 253 857 313 238 Sensors 1317 | . . . . . . . . . 12 598 291 335 . . . 81 Terrain 3165 | 151 113 224 2631 46 . . . . . . . . . . . . Seismic 4627 | . 208 636 1307 846 808 . . . . . . 122 253 447 . . T.N.C. 3528 | . . . . . . 309 465 66 673 859 293 670 193 . . . Cloaking 1 | . . . . . . . . . . . . . 1 . . . Jamming 625 | . . . . . . . . . . . . . . 340 . 285 ECM 329 | . . . . . . 75 91 3 29 82 25 . . 3 21 . Robot Analysis Total . | . . . . . . . . . . . . . . . . . Derelict Logs Recovered 5 | . . 1 . 2 . . . . . . . 2 . . . . Drone Launches 23 | . . . . . . . . . . 3 3 11 2 2 2 . Drone Recoveries 18 | . . . . . . . . . . 3 3 5 4 2 1 . Exploration | -11 -10 -10 -10 -9 -8 -7 -6 -6 -6 -5 -4 -4 -4 -4 -3 -3 ------------- Run | Yrd Mat Min Exi Min Mat Fac Fac Was Fac Fac Fac Upp Upp War Pro Res Turns Passed 13723 | 238 599 905 3938 892 1566 399 465 66 673 859 293 670 253 857 313 737 Spaces Moved 10720 | 113 218 490 1482 377 753 258 495 162 838 1163 353 947 489 1557 541 484 Core 31 | 9 . . . . . . 1 . . 1 . . . . . 20 Treads 306 | 98 208 . . . . . . . . . . . . . . . Legs 3556 | 6 10 490 1482 377 753 258 155 . . . . . . . . 25 Wheels 267 | . . . . . . . . . . . . . . . . 267 Hover 97 | . . . . . . . . . . . 22 . . 8 . 67 Flight 6463 | . . . . . . . 339 162 838 1162 331 947 489 1549 541 105 Fastest Speed 21 | 50 120 120 120 190 113 113 26 26 26 23 29 25 22 21 35 42 Average Speed 76 | 149 159 141 159 190 127 129 62 26 27 29 38 29 24 34 37 89 Slowest Speed 600 | 160 190 190 190 190 190 190 600 26 94 450 180 102 101 160 42 325 Overloaded Moves . | . . . . . . . . . . . . . . . . . Propulsion Burnouts . | . . . . . . . . . . . . . . . . . Robots Hopped 10 | . . . . . . . . . . 2 . 2 . 6 . . Potential Cave-ins 30 | . . 3 . . . . . . . . . 3 1 8 7 8 Cave-ins Triggered 3 | . . . . . . . . . . . . . . 1 1 1 Exploration Rate (%) 50 | 6 45 99 95 64 44 7 9 89 19 23 11 78 72 92 88 16 Regions Visited 16 Branch Regions 7 Pre-discovered Areas 3 | . . . 1 1 . . . . . . . . . 1 . . Known Exits Taken 7 | . . . . . 1 . . . . 1 1 1 1 1 1 . Unknown Exits Taken 7 | 1 1 1 1 1 . 1 . . 1 . . . . . . . Scrap Searched 12 | . . 1 . 1 . . . . . . . 5 4 . 1 . Spaces Dug 133 | . . 79 . . . . . . . 8 . 8 . 7 13 18 Terrain Destroyed 441 | . . 104 . 4 16 . . . . 88 10 127 54 7 13 18 Melee 40 | . . . . . . . . . . 2 . . . 7 13 18 Projectile 88 | . . . . 4 16 . . . . 45 10 13 . . . . AOE 313 | . . 104 . . . . . . . 41 . 114 54 . . . Terrain Rammed . | . . . . . . . . . . . . . . . . . Walls Destroyed . | . . . . . . . . . . . . . . . . . Machines Disabled . | . . . . . . . . . . . . . . . . . Actions | -11 -10 -10 -10 -9 -8 -7 -6 -6 -6 -5 -4 -4 -4 -4 -3 -3 --------- Run | Yrd Mat Min Exi Min Mat Fac Fac Was Fac Fac Fac Upp Upp War Pro Res Total 15597 | 152 422 675 3053 554 1270 306 647 178 1261 1597 458 1290 605 1834 623 672 Wait 3723 | 1 152 152 1553 169 373 10 74 1 350 240 53 263 72 203 37 20 Move 10686 | 112 217 489 1481 376 752 257 495 161 837 1158 352 942 488 1546 539 484 Hop 7 | . . . . . . . . . . 2 . 2 . 3 . . Pick Up 143 | 12 12 2 5 3 24 9 9 1 13 20 5 3 4 4 5 12 Fast Attach 142 | . . . 1 . 9 4 13 5 12 32 3 9 9 13 4 28 Attach 76 | 7 . 1 2 . 11 4 3 . 4 9 3 4 3 6 4 15 Detach 19 | . . . 1 . . . 1 . . 7 . 1 1 3 2 3 Swap 127 | 4 11 11 1 3 16 6 11 1 8 18 6 13 4 6 3 5 Drop 196 | . 7 3 8 3 25 9 22 5 22 43 5 10 8 15 4 7 Fire 271 | 16 23 17 1 . 28 7 3 3 14 52 15 31 11 27 1 22 Melee 173 | . . . . . 29 . . 1 1 5 16 10 5 7 23 76 Ram 2 | . . . . . . . . . . . . 2 . . . . Kick 3 | . . . . . 3 . . . . . . . . . . . Crush . | . . . . . . . . . . . . . . . . . Escape Stasis 13 | . . . . . . . . . . 11 . . . 1 1 . Rewire . | . . . . . . . . . . . . . . . . . Trap 16 | . . . . . . . 16 . . . . . . . . . Miscellaneous . | . . . . . . . . . . . . . . . . . Route ------- -11/Scrapyard -10/Materials (discovered 2 exits: [*Mat] / *Min) -10/Mines (discovered 4 exits: [*Mat x2] / *Exi / [*Sub]) -10/Exiles (discovered 2 exits: [*Min x2]) -9/Mines -8/Materials -7/Factory (discovered 3 exits: *Fac / Sto / [*Low]) -6/Factory -6/Waste -6/Factory (discovered 3 exits: *Fac / [*Low x2]) -5/Factory (discovered 2 exits: *Fac / *Upp) -4/Factory -4/Upper Caves -4/Upper Caves -4/Warlord -3/Proximity Caves -3/Research (discovered 1 exit: *Res) History --------- Turn | Location | Event 6 | -11/Scrapyard | Discovered new exit (range 16) 239 | -11/Scrapyard | Entered Materials 316 | -10/Materials | Build established: Mutant 481 | -10/Materials | Discovered new exit (range 5) 809 | -10/Materials | Discovered new exit (range 6) 838 | -10/Materials | Entered Mines 1167 | -10/Mines | Deemed a non-threat by the Exiles lab entrance 1167 | -10/Mines | Discovered new exit (range 5) 1203 | -10/Mines | Discovered new exit (range 12) 1404 | -10/Mines | Discovered new exit (range 5) 1427 | -10/Mines | Discovered new exit (range 4) 1743 | -10/Mines | Entered Exiles 1764 | -10/Exiles | Discovered new exit (range 15) 1796 | -10/Exiles | Met 8R-AWN 1817 | -10/Exiles | Met EX-HEX 1892 | -10/Exiles | Met EX-DEC 1920 | -10/Exiles | Visited The Gauntlet 2100 | -10/Exiles | Learned location of Zion (-6) 2203 | -10/Exiles | Discovered new exit (range 10) 2271 | -10/Exiles | Met EX-BIN 2326 | -10/Exiles | Aligned with FarCom system 2327 | -10/Exiles | Given EX-Vault access code 2517 | -10/Exiles | Opened EX-Vault 2523 | -10/Exiles | Found Prototype Energy Gun 2523 | -10/Exiles | Identified AWS/Thermal 2529 | -10/Exiles | Found Prototype Special Weapon 2531 | -10/Exiles | Identified Field Lobotomy Kit 2536 | -10/Exiles | Found Prototype Processor 2537 | -10/Exiles | Identified Modified TNC 2603 | -10/Exiles | Warned to stay clear of 0b10 Research branches 5681 | -10/Exiles | Stole three prototypes: AWS/Thermal, Modified TNC, Field Lobotomy Kit 5681 | -10/Exiles | Entered Mines 5854 | -9/Mines | Learned location of 1 exit from Materials 5946 | -9/Mines | Assembled infested the area 6375 | -9/Mines | Discovered new exit (range 10) 6573 | -9/Mines | Entered Materials 6573 | -8/Materials | Evolved 4 slots: Propulsion x1, Utility x3 6574 | -8/Materials | Identified exit to Factory 7050 | -8/Materials | Build established: Scavenger-Mutant 7601 | -8/Materials | AWS/Thermal suddenly broke down 7665 | -8/Materials | Build established: Hacker-Mutant 7702 | -8/Materials | Assimilated Y-45 Defender with FLK Orb 7883 | -8/Materials | Assimilated L-31 Rogue with FLK Orb 7887 | -8/Materials | Assimilated G-47 Trooper with FLK Orb 7984 | -8/Materials | Lost 4 parts (1p1n1u1w) 8002 | -8/Materials | Build established: Scavenger-Mutant 8139 | -8/Materials | Entered Factory 8139 | -7/Factory | Evolved 2 slots: Utility x1, Weapon x1 8140 | -7/Factory | Identified exit to Storage 8141 | -7/Factory | FarCom data flow suspended 8310 | -7/Factory | Discovered new exit (range 11) 8364 | -7/Factory | Build established: Hacker-Mutant 8375 | -7/Factory | Assimilated Y-54 Guardian with FLK Orb 8440 | -7/Factory | Assimilated P-60 Hacker with FLK Orb 8469 | -7/Factory | Discovered new exit (range 6) 8538 | -7/Factory | Entered another Factory area 8538 | -6/Factory | Evolved 2 slots: Propulsion x1, Utility x1 8776 | -6/Factory | Discovered new exit (range 12) 8919 | -6/Factory | Fabricated T-07 Excavator (x2) 9003 | -6/Factory | Sucked down chute 9003 | -6/Factory | Entered Waste 9006 | -6/Waste | Found Prototype Device 9006 | -6/Waste | Identified Exp. Sensor Array 9013 | -6/Waste | Spotted C-40 Crusher 9013 | -6/Waste | Spotted C-40 Crusher 9018 | -6/Waste | EMP discharged 9018 | -6/Waste | System corruption reached 10% 9034 | -6/Waste | Spotted C-40 Crusher 9034 | -6/Waste | Spotted C-40 Crusher 9035 | -6/Waste | Spotted C-40 Crusher 9036 | -6/Waste | Spotted C-40 Crusher 9056 | -6/Waste | Discovered new exit (range 10) 9069 | -6/Waste | Entered Factory 9098 | -6/Factory | Repaired Fusion Compressor 9140 | -6/Factory | Build established: Hacker-Sprinter 9520 | -6/Factory | Fabricated R-10 Processor (x2) 9644 | -6/Factory | Discovered new exit (range 21) 9691 | -6/Factory | Discovered new exit (range 9) 9726 | -6/Factory | Discovered new exit (range 14) 9742 | -6/Factory | Entered another Factory area 9742 | -5/Factory | Evolved 2 slots: Power x1, Propulsion x1 9780 | -5/Factory | Identified exit to DSF 9939 | -5/Factory | Discovered new exit (range 11) 9979 | -5/Factory | Identified exit to Upper Caves 10014 | -5/Factory | Found Prototype Processor 10014 | -5/Factory | Identified Exp. Targeting Computer 10132 | -5/Factory | Discovered new exit (range 19) 10598 | -5/Factory | Lost 3 parts (2n1w) 10599 | -5/Factory | Identified exit to Factory 10601 | -5/Factory | Entered another Factory area 10601 | -4/Factory | Evolved 2 slots: Propulsion x1, Utility x1 10857 | -4/Factory | Repaired Hyp. Coil Gun 10870 | -4/Factory | Discovered new exit (range 4) 10871 | -4/Factory | Identified exit to Upper Caves 10894 | -4/Factory | Entered Upper Caves 10952 | -4/Upper Caves | Encountered a Warlord checkpoint 11057 | -4/Upper Caves | Learned Research security intel 11162 | -4/Upper Caves | Build established: Hacker-Scout 11358 | -4/Upper Caves | Lost 3 parts (1p1n1w) 11498 | -4/Upper Caves | Learned Research terminal intel 11521 | -4/Upper Caves | Build established: Hacker-Sprinter 11557 | -4/Upper Caves | Discovered new exit (range 8) 11559 | -4/Upper Caves | Identified exit to Upper Caves 11564 | -4/Upper Caves | Entered another Upper Caves area 11564 | -4/Upper Caves | Accompanied by 2 allies 11565 | -4/Upper Caves | Spotted B-86 Titan 11757 | -4/Upper Caves | Encountered a Master Thief 11757 | -4/Upper Caves | Encountered a Master Thief 11757 | -4/Upper Caves | Encountered a Master Thief 11757 | -4/Upper Caves | Encountered a Master Thief 11761 | -4/Upper Caves | Impulse Thruster stolen by Master Thief 11763 | -4/Upper Caves | Impulse Thruster stolen by Master Thief 11764 | -4/Upper Caves | Discovered new exit (range 12) 11766 | -4/Upper Caves | Micro-nuke Launcher stolen by Master Thief 11802 | -4/Upper Caves | Identified exit to Warlord 11817 | -4/Upper Caves | Entered Warlord 11829 | -4/Warlord | System corruption cleaned by Quarantine Array 12176 | -4/Warlord | Learned location of Command (-1) 12176 | -4/Warlord | Learned 4 Armory zone layouts 12176 | -4/Warlord | Learned Factory terminal intel 12176 | -4/Warlord | Learned Factory fabricator intel 12189 | -4/Warlord | Met Warlord 12214 | -4/Warlord | Warlord's base attacked by MAIN.C 12241 | -4/Warlord | Found Prototype Piercing Weapon 12241 | -4/Warlord | Identified Vortex Lance 12244 | -4/Warlord | Found Prototype Energy Cannon 12244 | -4/Warlord | Identified Vortex Driver 12247 | -4/Warlord | Found Vortex Lance 12400 | -4/Warlord | P-70 Sage assimilated allied WI-BNJ(m) 12564 | -4/Warlord | Warlord forces counterattacked 12652 | -4/Warlord | Crushed by falling debris 12664 | -4/Warlord | Discovered new exit (range 14) 12666 | -4/Warlord | System corruption reached 10% 12667 | -4/Warlord | Found Corrupted Prototype Device 12668 | -4/Warlord | Identified Adv. Kinecellerator 12673 | -4/Warlord | Identified exit to Proximity Caves 12674 | -4/Warlord | Entered Proximity Caves 12683 | -3/Proximity Caves | Lost 4 parts (2n2u) 12698 | -3/Proximity Caves | Lost 14 allies 12713 | -3/Proximity Caves | Attracted the attention of an 0b10 outpost 12767 | -3/Proximity Caves | Lost 4 parts (1p1n1u1w) 12811 | -3/Proximity Caves | Acquired the password to a Derelict Tinkerer's latest research 12815 | -3/Proximity Caves | Found Prototype Special Weapon 12817 | -3/Proximity Caves | Identified Molecular Deconstructor 12888 | -3/Proximity Caves | Caught by Unaware searching for contraband prototypes 12905 | -3/Proximity Caves | Spotted B-86 Titan 12975 | -3/Proximity Caves | Crushed by falling debris 12976 | -3/Proximity Caves | System corruption reached 30% 12983 | -3/Proximity Caves | Discovered new exit (range 11) 12987 | -3/Proximity Caves | Identified exit to Research 12987 | -3/Proximity Caves | Entered Research 12987 | -3/Research | Evolved 2 slots: Utility x2 12989 | -3/Research | Loaded intel: 21 terminal locations 13006 | -3/Research | Lost 4 parts (1p1n2u) 13070 | -3/Research | Spotted B-86 Titan 13193 | -3/Research | Discovered new exit (range 20) 13199 | -3/Research | Lost 7 parts (2p3n2u) 13300 | -3/Research | Lost 7 parts (1p4n2u) 13328 | -3/Research | Identified exit to Research 13498 | -3/Research | Build established: Scavenger-Mutant 13646 | -3/Research | Crushed by falling debris 13646 | -3/Research | Core integrity fell below 50% 13646 | -3/Research | System corruption reached 10% 13694 | -3/Research | Core integrity fell below 20% 13724 | -3/Research | Destroyed by P-80 Master with Gamma Rifle Last Messages --------------- 13705_ Identified Hyp. Railgun. 13706_ HV Slug penetrates S-43 Plague. 13706_ S-43 Plague suffers critical hit (Destroy). 13706_ S-43 Plague destroyed. 13706_ HV Slug penetrates Wall. 13709_ Research Mainframe disabled. 13710_ Acquired Xenon Bombardment Thruster. 13714_ Slug penetrates P-80 Master. 13714_ P-80 Master knocked back. 13716_ System corrupted: Heat flow error (+181). 13717_ HV Slug penetrates Research Mainframe. 13717_ HV Slug penetrates Wall. 13717_ Slug penetrates Research Mainframe. 13720_ P-80 Master suffers critical hit (Destroy). 13720_ Destroyed Imp. Antigrav System. 13720_ P-80 Master knocked back. 13721_ Mass Driver destroyed. 13723_ HV Slug penetrates Wall. 13723_ HV Slug penetrates Door. 13723_ HV Slug penetrates Wall. Map ----- +----------------------------------------------------+ | ?????????????????????????????????????????????????? | | ?????????????????????????????????????????????????? | | ?????#???????????????????????????????????????????? | | ???? #???????????????????????????????????????????? | | ?? ????????????????????????????????????????????? | | ? ??????????????????????????????????????????????? | | +###########################?????????????????????? | | ?????????????????????? | | ????????????????????? | | % % ????????????????????? | | = ????????????????????? | | # T####/"##### [ ######?????????????????????????? | | ####% %% =%[ #???????????????????????????? | | ###%%!= |! #???????????????????????????? | | # ## ###?????????????????????????? | | #### ! #?????????????????????????? | | ???# = #??????????????????????????? | | ???# %[ ###?????????????????????????? | | ???# * [ #?????????????????????????? | | ???# [ [% == ##?????????????????????????? | | ???# % % ##??????????????????????????? | | ???######## #???????????????????????????? | | ?????????## # ########?????????????????????? | | ??????????##### # """" #?????????????????????? | | ??????????????##### H""" #?????????"""?????????? | | ??????????????????# "" @%#?????????"T"?????????? | | ??????????????????# """ %p#?????????"?"?????????? | | ??????????????????# H = #?????????????????????? | | ??????????????????# p%p +????????????????? | | ??????????????????# # #????????????????? | | ??????????????????# # #????????????????? | | ??????????????????# +? ??#????????????????? | | ??????????????????##########?+#??????????????????? | | ?????????????????????????????????????????????????? | | ?????????????????????????????????????????????????? | | ?????????????????????????????????????????????????? | | ?????????????????????????????????????????????????? | | ?????????????????????????????????????????????????? | | ?????????????????????????????????????????????????? | | ?????????????????????????????????????????????????? | | ?????????????????????????????????????????????????? | | ?????????????????????????????????????????????????? | | ?????????????????????????????????????????????????? | | ?????????????????????????????????????????????????? | | ?????????????????????????????????????????????????? | | ?????????????????????????????????????????????????? | | ?????????????????????????????????????????????????? | | ?????????????????????????????????????????????????? | | ?????????????????????????????????????????????????? | | ?????????????????????????????????????????????????? | +----------------------------------------------------+ Best States ------------- Heat Dissipation 84 Coolant Potential 80 Energy Generation 37 Energy Capacity 465 Matter Stores 300 Matter Capacity 300 Sight Range 22 Robot Scan Range 16 Terrain Scan Range 16 Terrain Scan Density 85 ECM Strength 2 Jamming Range 14 Armor Coverage 300 Resistance: TH 25 Resistance: EX 25 Resistance: EM 25 Core Shielding 40 Power Shielding 66 Melee Speed Boost 30 Evasion (%) 73 Melee Accuracy 8 Target Analysis 12 Recoil Reduction 2 Salvage Targeting 2 Offensive Hacking 26 Defensive Hacking 22 Authchip Count 3 Item Schematics ----------------- None Robot Schematics ------------------ None Fabricated ------------ T-07 Excavator | x2 | -6/Factory | Preloaded R-10 Processor | x2 | -6/Factory | Preloaded Repaired ---------- Fusion Compressor | 63% | -6/Factory Hyp. Coil Gun | 17% | -4/Factory Studied --------- None Alien Tech Used ----------------- None Achievements -------------- A Powerful Ally? Charge!!! Consequences Dangerous Findings Drive-By Error 47 Factory Defaults Hackathon Hehehe I Laugh At Your Crits Insider Info Morally Flexible Ooh, Shiny! Plot Armor Sixth Sense This Is My Hole Total Silence Challenges ------------ None Game ------ Seed NeutronChargePod Manual? 0 Play Time 06:50:46 Cumulative 56.7 hours Start 2025.12.03 @ 08:41:17 End 2025.12.03 @ 19:13:43 Sessions 1 Manual Loads 0 Difficulty Rogue Special Mode None Game No. 25 Rogue 25 Adventurer 0 Explorer 0 Win Type - Total 0 Types 0/0/0/0/0/0/0/0/0/0 Lore% 18 Gallery% 35 Achievement% 23 Wizard Run 0 Options --------- Layout 0 ASCII 0 Keyboard 0 Movement Mouse Keybinds 1 Fullscreen 2 Font 24/Smallcaps Map View 76x50 Zoom Use 0% Tactical HUD 1 Map Filters NONE Filters NONE Steam 1 RUN: 65afac7c-5dc6-450a-bdee-1d786ded8855